[Event "Open NK Rapid 2025 bord 26-50"]
[Site "Helmond, Netherlands"]
[Date "2025.05.03"]
[Round "2.5"]
[White "Geboers, Jimmy"]
[Black "Robinson, Roland"]
[Result "1-0"]
[TimeControl "15 min +5 sec increment"]
[WhiteFideId "262919"]
[BlackFideId "1029142"]
[WhiteElo "2065"]
[BlackElo "1819"]

1. d4 {[%clk 00:15:07]} {[%emt 00:00:02]} b5 {[%clk 00:15:09]} {[%emt
00:00:01]} 2. e4 {[%clk 00:15:07]} {[%emt 00:00:05]} Bb7 {[%clk 00:15:14]}
{[%emt 00:00:02]} 3. f3 {[%clk 00:15:10]} {[%emt 00:00:01]} a6 {[%clk
00:15:18]} {[%emt 00:00:02]} 4. c4 {[%clk 00:15:11]} {[%emt 00:00:03]} bxc4
{[%clk 00:15:20]} {[%emt 00:00:04]} 5. Bxc4 {[%clk 00:15:13]} {[%emt 00:00:02]}
e6 {[%clk 00:15:24]} {[%emt 00:00:01]} 6. Ne2 {[%clk 00:15:11]} {[%emt
00:00:06]} Bb4+ {[%clk 00:15:06]} {[%emt 00:00:24]} 7. Bd2 {[%clk 00:15:14]}
{[%emt 00:00:02]} a5 {[%clk 00:14:58]} {[%emt 00:00:13]} 8. O-O {[%clk
00:15:06]} {[%emt 00:00:13]} Bxd2 {[%clk 00:14:41]} {[%emt 00:00:22]} 9. Nxd2
{[%clk 00:15:08]} {[%emt 00:00:03]} d6 {[%clk 00:14:45]} {[%emt 00:00:02]} 10.
Qb3 {[%clk 00:15:07]} {[%emt 00:00:05]} Qc8 {[%clk 00:14:35]} {[%emt 00:00:15]}
11. Nf4 {[%clk 00:14:47]} {[%emt 00:00:24]} a4 {[%clk 00:14:16]} {[%emt
00:00:26]} 12. Bb5+ {[%clk 00:14:31]} {[%emt 00:00:19]} Bc6 {[%clk 00:13:44]}
{[%emt 00:00:38]} 13. Bxc6+ {[%clk 00:14:26]} {[%emt 00:00:10]} Nxc6 {[%emt
00:00:03]} 14. Qb5 {[%clk 00:14:19]} {[%emt 00:00:10]} Qd7 {[%clk 00:13:31]}
{[%emt 00:00:21]} 15. d5 {[%clk 00:14:10]} {[%emt 00:00:14]} Ne5 {[%clk
00:11:52]} {[%emt 00:01:45]} 16. Qxd7+ {[%clk 00:13:47]} {[%emt 00:00:28]} Kxd7
{[%clk 00:11:55]} {[%emt 00:00:03]} 17. Rac1 {[%clk 00:13:19]} {[%emt
00:00:32]} Nf6 {[%clk 00:11:46]} {[%emt 00:00:14]} 18. Nc4 {[%clk 00:13:14]}
{[%emt 00:00:10]} Nxc4 {[%clk 00:11:17]} {[%emt 00:00:35]} 19. Rxc4 {[%clk
00:13:16]} {[%emt 00:00:02]} Rhb8 {[%clk 00:11:02]} {[%emt 00:00:20]} 20. Rf2
{[%clk 00:12:48]} {[%emt 00:00:32]} e5 {[%clk 00:10:45]} {[%emt 00:00:24]} 21.
Nd3 {[%clk 00:12:44]} {[%emt 00:00:07]} g5 {[%clk 00:09:46]} {[%emt 00:01:05]}
22. Rfc2 {[%clk 00:12:44]} {[%emt 00:00:05]} Ne8 {[%clk 00:09:45]} {[%emt
00:00:07]} 23. R2c3 {[%clk 00:12:12]} {[%emt 00:00:36]} Rb7 {[%clk 00:08:26]}
{[%emt 00:01:25]} 24. Ra3 {[%clk 00:12:13]} {[%emt 00:00:04]} Rba7 {[%clk
00:08:21]} {[%emt 00:00:10]} 25. Rb4 {[%clk 00:11:46]} {[%emt 00:00:30]} Kc8
{[%clk 00:08:00]} {[%emt 00:00:27]} 26. Kf1 {[%clk 00:11:24]} {[%emt 00:00:27]}
h5 {[%clk 00:07:25]} {[%emt 00:00:40]} 27. Ke1 {[%clk 00:11:11]} {[%emt
00:00:17]} Nf6 {[%clk 00:07:29]} {[%emt 00:00:02]} 28. Kd2 {[%clk 00:10:49]}
{[%emt 00:00:25]} Nd7 {[%clk 00:07:14]} {[%emt 00:00:22]} 29. Rc4 {[%clk
00:09:56]} {[%emt 00:00:58]} Nb6 {[%clk 00:07:12]} {[%emt 00:00:08]} 30. Rc6
{[%clk 00:09:55]} {[%emt 00:00:05]} Kd7 {[%clk 00:07:08]} {[%emt 00:00:09]} 31.
Nc1 {[%clk 00:09:28]} {[%emt 00:00:30]} g4 {[%clk 00:07:04]} {[%emt 00:00:11]}
32. Ne2 {[%clk 00:09:28]} {[%emt 00:00:05]} gxf3 {[%clk 00:07:03]} {[%emt
00:00:06]} 33. gxf3 {[%clk 00:09:30]} {[%emt 00:00:02]} h4 {[%clk 00:06:55]}
{[%emt 00:00:14]} 34. Ke1 {[%clk 00:08:58]} {[%emt 00:00:35]} Rg8 {[%clk
00:06:31]} {[%emt 00:00:32]} 35. Kf2 {[%clk 00:09:00]} {[%emt 00:00:01]} Raa8
{[%clk 00:06:18]} {[%emt 00:00:20]} 36. Rac3 {[%clk 00:08:59]} {[%emt
00:00:05]} Rac8 {[%clk 00:06:06]} {[%emt 00:00:17]} 37. Rc2 {[%clk 00:08:46]}
{[%emt 00:00:17]} f6 {[%clk 00:06:03]} {[%emt 00:00:10]} 38. Nc3 {[%clk
00:08:28]} {[%emt 00:00:22]} h3 {[%clk 00:05:48]} {[%emt 00:00:19]} 39. Kf1
{[%clk 00:08:31]} {[%emt 00:00:02]} Rgf8 {[%clk 00:05:41]} {[%emt 00:00:13]} 40.
Nb5 {[%clk 00:08:33]} {[%emt 00:00:03]} Na8 {[%clk 00:05:25]} {[%emt 00:00:22]}
41. R6c4 {[%clk 00:07:52]} {[%emt 00:00:44]} Nb6 {[%clk 00:05:24]} {[%emt
00:00:08]} 42. Rxc7+ {[%clk 00:07:50]} {[%emt 00:00:05]} Rxc7 {[%clk 00:05:21]}
{[%emt 00:00:09]} 43. Rxc7+ {[%clk 00:07:53]} {[%emt 00:00:02]} Kd8 {[%clk
00:05:14]} {[%emt 00:00:12]} 44. Rc6 {[%clk 00:07:50]} {[%emt 00:00:08]} Nd7
{[%clk 00:05:06]} {[%emt 00:00:13]} 45. Nxd6 {[%clk 00:07:46]} {[%emt
00:00:08]} Ke7 {[%clk 00:04:32]} {[%emt 00:00:40]} 46. Nf5+ {[%clk 00:07:45]}
{[%emt 00:00:05]} Kd8 {[%clk 00:04:10]} {[%emt 00:00:28]} 47. Ra6 {[%clk
00:07:48]} {[%emt 00:00:02]} Kc7 {[%clk 00:04:02]} {[%emt 00:00:13]} 48. Rxa4
{[%clk 00:07:43]} {[%emt 00:00:10]} Rg8 {[%clk 00:03:57]} {[%emt 00:00:10]} 49.
Ra7+ {[%clk 00:07:24]} {[%emt 00:00:24]} 1-0

[Event "Open NK Rapid 2025 bord 26-50"]
[Site "Helmond, Netherlands"]
[Date "2025.05.03"]
[Round "2.6"]
[White "Roebers, Jan"]
[Black "Kazi, Zidan"]
[Result "1-0"]
[TimeControl "15 min +5 sec increment"]
[WhiteFideId "1007815"]
[BlackFideId "40102300"]
[WhiteElo "2058"]
[BlackElo "1818"]

1. e4 {[%clk 00:15:08]} {[%emt 00:00:02]} e5 {[%clk 00:15:06]} {[%emt
00:00:04]} 2. f4 {[%clk 00:15:10]} {[%emt 00:00:03]} exf4 {[%clk 00:15:05]}
{[%emt 00:00:06]} 3. Bc4 {[%clk 00:15:13]} {[%emt 00:00:03]} Qh4+ {[%clk
00:14:57]} {[%emt 00:00:12]} 4. Kf1 {[%clk 00:15:16]} {[%emt 00:00:02]} Nf6
{[%clk 00:14:55]} {[%emt 00:00:07]} 5. Nf3 {[%clk 00:15:15]} {[%emt 00:00:06]}
Qh6 {[%clk 00:14:52]} {[%emt 00:00:05]} 6. Nc3 {[%clk 00:15:14]} {[%emt
00:00:08]} d6 {[%clk 00:14:52]} {[%emt 00:00:06]} 7. d4 {[%clk 00:14:37]}
{[%emt 00:00:42]} Nc6 {[%clk 00:14:13]} {[%emt 00:00:45]} 8. Nb5 {[%clk
00:14:09]} {[%emt 00:00:33]} Kd8 {[%clk 00:12:46]} {[%emt 00:01:32]} 9. Qe2
{[%clk 00:13:45]} {[%emt 00:00:28]} Bg4 {[%clk 00:12:35]} {[%emt 00:00:15]} 10.
c3 {[%clk 00:11:54]} {[%emt 00:01:57]} a6 {[%clk 00:11:38]} {[%emt 00:01:02]}
11. Na3 {[%clk 00:11:57]} {[%emt 00:00:02]} Nh5 {[%clk 00:11:15]} {[%emt
00:00:28]} 12. Kf2 {[%clk 00:10:52]} {[%emt 00:01:10]} Be7 {[%clk 00:10:15]}
{[%emt 00:01:04]} 13. Rf1 {[%clk 00:09:55]} {[%emt 00:01:03]} Bh4+ {[%clk
00:09:27]} {[%emt 00:00:53]} 14. Kg1 {[%clk 00:09:55]} {[%emt 00:00:05]} Bg3
{[%clk 00:07:28]} {[%emt 00:02:04]} 15. hxg3 {[%clk 00:08:46]} {[%emt
00:01:14]} Nxg3 {[%clk 00:07:29]} {[%emt 00:00:03]} 16. Qd1 {[%clk 00:08:29]}
{[%emt 00:00:23]} Qh1+ {[%clk 00:07:10]} {[%emt 00:00:24]} 17. Kf2 {[%clk
00:08:32]} {[%emt 00:00:02]} Nxe4+ {[%clk 00:07:13]} {[%emt 00:00:03]} 18. Ke2
{[%clk 00:07:51]} {[%emt 00:00:45]} Qxg2+ {[%clk 00:06:40]} {[%emt 00:00:37]}
19. Kd3 {[%clk 00:07:52]} {[%emt 00:00:05]} Nf2+ {[%clk 00:06:29]} {[%emt
00:00:17]} 20. Rxf2 {[%clk 00:07:54]} {[%emt 00:00:03]} Qxf2 {[%clk 00:06:32]}
{[%emt 00:00:02]} 21. Bd5 {[%clk 00:06:54]} {[%emt 00:01:04]} Bxf3 {[%clk
00:04:35]} {[%emt 00:02:02]} 22. Bxf3 {[%clk 00:06:02]} {[%emt 00:00:57]} g5
{[%clk 00:04:32]} {[%emt 00:00:08]} 23. Qh1 {[%clk 00:05:30]} {[%emt 00:00:37]}
Qg3 {[%clk 00:04:21]} {[%emt 00:00:16]} 24. Kc2 {[%clk 00:05:08]} {[%emt
00:00:27]} Kd7 {[%clk 00:03:48]} {[%emt 00:00:38]} 25. Bd2 {[%clk 00:05:06]}
{[%emt 00:00:07]} g4 {[%clk 00:03:16]} {[%emt 00:00:38]} 26. Be4 {[%clk
00:04:56]} {[%emt 00:00:14]} h5 {[%clk 00:02:52]} {[%emt 00:00:29]} 27. Rg1
{[%clk 00:04:38]} {[%emt 00:00:23]} Qh3 {[%clk 00:02:38]} {[%emt 00:00:20]} 28.
Qxh3 {[%clk 00:04:39]} {[%emt 00:00:03]} gxh3 {[%clk 00:02:42]} 29. Bf5+ {[%clk
00:04:43]} {[%emt 00:00:01]} Ke7 {[%clk 00:02:45]} {[%emt 00:00:02]} 30. Bxf4
{[%clk 00:04:44]} {[%emt 00:00:05]} Rhg8 {[%clk 00:02:44]} {[%emt 00:00:06]} 31.
Re1+ {[%clk 00:04:33]} {[%emt 00:00:15]} Kf6 {[%clk 00:02:45]} {[%emt
00:00:04]} 32. Bxh3 {[%clk 00:04:36]} {[%emt 00:00:02]} Rae8 {[%clk 00:02:47]}
{[%emt 00:00:04]} 33. Rf1 {[%clk 00:04:36]} {[%emt 00:00:04]} Kg6 {[%clk
00:02:42]} {[%emt 00:00:10]} 34. Nc4 {[%clk 00:04:28]} {[%emt 00:00:13]} Re4
{[%clk 00:02:32]} {[%emt 00:00:14]} 35. Ne3 {[%clk 00:04:11]} {[%emt 00:00:23]}
Kg7 {[%clk 00:02:23]} {[%emt 00:00:14]} 36. Kd3 {[%clk 00:04:11]} {[%emt
00:00:05]} Rge8 {[%emt 00:00:07]} 37. Nf5+ {[%clk 00:03:56]} {[%emt 00:00:18]}
Kh8 {[%clk 00:02:25]} {[%emt 00:00:04]} 38. Bg5 {[%clk 00:03:45]} {[%emt
00:00:15]} Re1 {[%clk 00:02:06]} {[%emt 00:00:24]} 39. Rf3 {[%clk 00:03:22]}
{[%emt 00:00:28]} R1e2 {[%clk 00:01:58]} {[%emt 00:00:13]} 40. Rg3 {[%clk
00:03:08]} {[%emt 00:00:19]} R2e6 {[%clk 00:01:43]} {[%emt 00:00:21]} 41. d5
{[%clk 00:03:05]} {[%emt 00:00:08]} Ne5+ {[%clk 00:01:42]} {[%emt 00:00:05]} 42.
Kd4 {[%clk 00:02:59]} {[%emt 00:00:11]} c5+ {[%clk 00:01:42]} {[%emt 00:00:05]}
43. dxc6 {[%clk 00:02:59]} {[%emt 00:00:05]} Nxc6+ {[%clk 00:01:45]} {[%emt
00:00:03]} 44. Kd3 {[%clk 00:02:57]} {[%emt 00:00:06]} Ne5+ {[%clk 00:01:48]}
{[%emt 00:00:03]} 45. Kc2 {[%clk 00:03:01]} Ng6 {[%clk 00:01:49]} {[%emt
00:00:03]} 46. Nd4 {[%clk 00:03:00]} {[%emt 00:00:07]} Re4 {[%clk 00:01:45]}
{[%emt 00:00:09]} 47. Bf6+ {[%clk 00:03:00]} {[%emt 00:00:05]} Kh7 {[%emt
00:00:11]} 48. Rg5 {[%clk 00:02:53]} Kh6 {[%clk 00:01:48]} {[%emt 00:00:08]} 49.
Nf5+ {[%clk 00:02:54]} {[%emt 00:00:04]} Kh7 {[%clk 00:01:50]} {[%emt
00:00:03]} 50. Rxh5+ {[%clk 00:02:55]} {[%emt 00:00:04]} Kg8 {[%clk 00:01:54]}
51. Nh4 {[%clk 00:02:33]} {[%emt 00:00:28]} Re2+ {[%clk 00:01:45]} {[%emt
00:00:14]} 52. Kb3 {[%clk 00:02:36]} {[%emt 00:00:01]} Rf2 {[%clk 00:01:47]}
{[%emt 00:00:01]} 53. Bd4 {[%clk 00:02:38]} {[%emt 00:00:06]} Rf4 {[%clk
00:01:43]} {[%emt 00:00:06]} 54. Nxg6 {[%clk 00:02:30]} {[%emt 00:00:14]} fxg6
{[%clk 00:01:47]} {[%emt 00:00:02]} 55. Rh8+ {[%clk 00:02:31]} {[%emt
00:00:04]} Kf7 {[%clk 00:01:51]} {[%emt 00:00:02]} 56. Rh7+ {[%clk 00:02:34]}
Kg8 {[%clk 00:01:52]} {[%emt 00:00:04]} 57. Rxb7 {[%clk 00:02:35]} {[%emt
00:00:04]} Rh4 {[%clk 00:01:49]} {[%emt 00:00:07]} 58. Bg2 {[%clk 00:02:30]}
{[%emt 00:00:10]} Rh5 {[%clk 00:01:44]} {[%emt 00:00:11]} 59. c4 {[%clk
00:02:27]} {[%emt 00:00:08]} Re2 {[%clk 00:01:43]} {[%emt 00:00:06]} 60. Bd5+
{[%clk 00:02:30]} {[%emt 00:00:02]} Kf8 {[%emt 00:00:05]} 61. Bf6 {[%clk
00:02:24]} {[%emt 00:00:09]} Rh3+ {[%clk 00:01:45]} {[%emt 00:00:05]} 62. Ka4
{[%clk 00:02:23]} {[%emt 00:00:06]} Ke8 {[%emt 00:00:13]} 63. a3 {[%clk
00:02:15]} {[%emt 00:00:11]} Rf2 {[%clk 00:01:41]} {[%emt 00:00:03]} 64. Bc6+
{[%clk 00:02:08]} {[%emt 00:00:12]} Kf8 {[%clk 00:01:44]} {[%emt 00:00:02]} 65.
Bg7+ {[%clk 00:02:12]} Kg8 {[%clk 00:01:47]} {[%emt 00:00:02]} 66. Bd5+ {[%clk
00:02:15]} Kh7 {[%clk 00:01:48]} {[%emt 00:00:05]} 67. Bd4+ {[%emt 00:00:07]}
Kh6 {[%clk 00:01:50]} 68. Bxf2 {[%clk 00:02:18]} {[%emt 00:00:03]} Rh2 {[%clk
00:01:52]} {[%emt 00:00:02]} 69. Bd4 {[%clk 00:02:22]} {[%emt 00:00:02]} Rh4
{[%clk 00:01:52]} {[%emt 00:00:05]} 70. Bc3 {[%clk 00:02:25]} {[%emt 00:00:03]}
Rh5 {[%clk 00:01:52]} {[%emt 00:00:04]} 71. Rb8 {[%clk 00:02:24]} {[%emt
00:00:06]} Kg5 {[%clk 00:01:55]} {[%emt 00:00:03]} 72. Ka5 {[%clk 00:02:25]}
{[%emt 00:00:04]} Kf4 {[%clk 00:01:55]} {[%emt 00:00:04]} 73. Kxa6 {[%clk
00:02:28]} {[%emt 00:00:01]} g5 {[%clk 00:01:57]} {[%emt 00:00:03]} 74. Kb6
{[%clk 00:02:26]} {[%emt 00:00:08]} g4 {[%clk 00:02:00]} {[%emt 00:00:02]} 75.
a4 {[%clk 00:02:30]} g3 {[%clk 00:01:58]} {[%emt 00:00:07]} 76. a5 {[%clk
00:02:34]} {[%emt 00:00:01]} Ke3 {[%clk 00:01:56]} {[%emt 00:00:08]} 77. a6
{[%clk 00:02:35]} {[%emt 00:00:04]} Kf2 {[%clk 00:01:49]} {[%emt 00:00:11]} 78.
a7 {[%clk 00:02:37]} {[%emt 00:00:03]} g2 {[%clk 00:01:52]} {[%emt 00:00:01]}
79. Bxg2 {[%clk 00:02:41]} {[%emt 00:00:02]} Kxg2 {[%clk 00:01:56]} {[%emt
00:00:01]} 80. a8=Q+ {[%clk 00:02:42]} {[%emt 00:00:05]} Kg3 {[%clk 00:01:55]}
{[%emt 00:00:05]} 81. Rg8+ {[%clk 00:02:45]} {[%emt 00:00:02]} Kf4 {[%clk
00:01:58]} {[%emt 00:00:02]} 82. Qf8+ {[%clk 00:02:44]} {[%emt 00:00:06]} Ke4
{[%emt 00:00:07]} 83. Rg4+ Ke3 {[%clk 00:02:04]} 84. Qf4+ {[%clk 00:02:49]}
{[%emt 00:00:02]} Ke2 {[%clk 00:02:07]} {[%emt 00:00:02]} 85. Qe4+ {[%clk
00:02:52]} {[%emt 00:00:03]} Kf1 {[%clk 00:02:08]} {[%emt 00:00:04]} 86. Qf3#
{[%clk 00:02:52]} {[%emt 00:00:04]} 1-0

[Event "Open NK Rapid 2025 bord 26-50"]
[Site "Helmond, Netherlands"]
[Date "2025.05.03"]
[Round "2.7"]
[White "Omnes, Tiago"]
[Black "Margaryan, Aren"]
[Result "0-1"]
[TimeControl "15 min +5 sec increment"]
[WhiteFideId "1091867"]
[BlackFideId "40105075"]
[WhiteElo "1813"]
[BlackElo "2054"]

1. e4 {[%clk 00:15:08]} {[%emt 00:00:02]} e5 {[%clk 00:15:07]} {[%emt
00:00:04]} 2. Nf3 {[%clk 00:15:11]} {[%emt 00:00:01]} Nc6 {[%clk 00:15:11]}
{[%emt 00:00:02]} 3. d4 {[%clk 00:15:15]} {[%emt 00:00:01]} exd4 {[%clk
00:15:15]} {[%emt 00:00:02]} 4. Bc4 {[%clk 00:15:18]} Nf6 {[%clk 00:15:14]}
{[%emt 00:00:06]} 5. e5 {[%clk 00:15:21]} {[%emt 00:00:02]} d5 {[%clk
00:15:16]} {[%emt 00:00:02]} 6. Bb5 {[%clk 00:15:25]} {[%emt 00:00:02]} Ne4
{[%clk 00:15:20]} {[%emt 00:00:01]} 7. Nxd4 {[%clk 00:15:28]} {[%emt 00:00:02]}
Bd7 {[%clk 00:15:24]} {[%emt 00:00:02]} 8. Bxc6 {[%clk 00:15:31]} {[%emt
00:00:01]} bxc6 {[%clk 00:15:28]} 9. O-O {[%clk 00:15:33]} {[%emt 00:00:03]}
Bc5 {[%clk 00:15:31]} {[%emt 00:00:02]} 10. f3 {[%clk 00:15:36]} {[%emt
00:00:01]} Ng5 {[%clk 00:15:20]} {[%emt 00:00:17]} 11. f4 {[%clk 00:15:40]}
{[%emt 00:00:01]} Ne4 {[%clk 00:15:03]} {[%emt 00:00:23]} 12. Be3 {[%clk
00:15:43]} {[%emt 00:00:01]} Rb8 {[%clk 00:14:55]} {[%emt 00:00:14]} 13. Qc1
{[%clk 00:15:06]} {[%emt 00:00:41]} O-O {[%clk 00:14:31]} {[%emt 00:00:30]} 14.
c3 {[%clk 00:15:09]} {[%emt 00:00:01]} Bb6 {[%clk 00:14:15]} {[%emt 00:00:21]}
15. Nd2 {[%clk 00:15:00]} {[%emt 00:00:13]} c5 {[%clk 00:13:57]} {[%emt
00:00:24]} 16. N4f3 {[%clk 00:14:28]} {[%emt 00:00:37]} Nxd2 {[%clk 00:13:22]}
{[%emt 00:00:40]} 17. Qxd2 {[%clk 00:14:26]} {[%emt 00:00:06]} Bb5 {[%clk
00:12:18]} {[%emt 00:01:11]} 18. Rf2 {[%clk 00:13:55]} {[%emt 00:00:34]} Qd7
{[%clk 00:10:46]} {[%emt 00:01:39]} 19. Rd1 {[%clk 00:13:53]} {[%emt 00:00:05]}
Rfd8 {[%clk 00:10:02]} {[%emt 00:00:50]} 20. b3 {[%clk 00:12:38]} {[%emt
00:01:21]} Qe7 {[%clk 00:08:51]} {[%emt 00:01:15]} 21. f5 {[%clk 00:11:55]}
{[%emt 00:00:48]} Ba5 {[%clk 00:08:01]} {[%emt 00:00:56]} 22. Bg5 {[%clk
00:10:13]} {[%emt 00:01:46]} f6 {[%clk 00:07:56]} {[%emt 00:00:10]} 23. exf6
{[%clk 00:10:03]} {[%emt 00:00:15]} gxf6 {[%clk 00:08:00]} {[%emt 00:00:02]} 24.
Re1 {[%clk 00:09:15]} {[%emt 00:00:52]} Qf7 {[%clk 00:07:41]} {[%emt 00:00:24]}
25. Bh4 {[%clk 00:07:42]} {[%emt 00:01:37]} Re8 {[%clk 00:07:12]} {[%emt
00:00:36]} 26. Rxe8+ {[%clk 00:07:19]} {[%emt 00:00:28]} Rxe8 {[%clk 00:07:04]}
{[%emt 00:00:13]} 27. b4 {[%clk 00:07:16]} {[%emt 00:00:08]} cxb4 {[%clk
00:06:49]} {[%emt 00:00:19]} 28. cxb4 {[%clk 00:07:03]} {[%emt 00:00:18]} Bb6
{[%clk 00:06:51]} {[%emt 00:00:04]} 29. Nd4 {[%clk 00:07:02]} {[%emt 00:00:05]}
Bxd4 {[%clk 00:06:51]} {[%emt 00:00:06]} 0-1

[Event "Open NK Rapid 2025 bord 26-50"]
[Site "Helmond, Netherlands"]
[Date "2025.05.03"]
[Round "2.8"]
[White "Ritzerveld, Noah"]
[Black "Hollands, Maxim"]
[Result "1-0"]
[TimeControl "15 min +5 sec increment"]
[WhiteFideId "1085760"]
[BlackFideId "1042335"]
[WhiteElo "2053"]
[BlackElo "1814"]

1. e4 {[%clk 00:15:08]} {[%emt 00:00:01]} d6 {[%clk 00:15:09]} {[%emt
00:00:01]} 2. d4 {[%clk 00:15:12]} Nf6 {[%clk 00:15:13]} {[%emt 00:00:01]} 3.
Nc3 {[%clk 00:15:17]} g6 {[%clk 00:15:17]} {[%emt 00:00:01]} 4. Be3 {[%clk
00:15:20]} {[%emt 00:00:01]} Bg7 {[%clk 00:15:21]} {[%emt 00:00:02]} 5. Qd2
{[%clk 00:15:24]} {[%emt 00:00:01]} c6 {[%clk 00:15:09]} {[%emt 00:00:17]} 6.
f3 {[%clk 00:15:13]} {[%emt 00:00:15]} b5 {[%clk 00:15:08]} {[%emt 00:00:06]} 7.
O-O-O {[%emt 00:02:34]} h5 {[%clk 00:14:00]} 8. Kb1 {[%clk 00:13:51]} {[%emt
00:00:12]} a5 {[%clk 00:13:55]} {[%emt 00:00:09]} 9. d5 {[%clk 00:13:08]}
{[%emt 00:00:48]} b4 {[%clk 00:13:41]} {[%emt 00:00:20]} 10. Na4 {[%clk
00:13:06]} {[%emt 00:00:06]} c5 {[%clk 00:12:55]} {[%emt 00:00:52]} 11. e5
{[%clk 00:12:44]} {[%emt 00:00:27]} Nfd7 {[%clk 00:11:51]} {[%emt 00:01:09]} 12.
e6 {[%clk 00:12:28]} {[%emt 00:00:20]} fxe6 {[%clk 00:09:19]} {[%emt 00:02:38]}
13. dxe6 {[%clk 00:12:30]} {[%emt 00:00:03]} Ne5 {[%clk 00:07:44]} {[%emt
00:01:39]} 14. Qd5 {[%clk 00:11:20]} {[%emt 00:01:15]} Ra7 {[%clk 00:05:39]}
{[%emt 00:02:11]} 15. Bb5+ {[%clk 00:10:47]} {[%emt 00:00:38]} Kf8 {[%clk
00:05:39]} {[%emt 00:00:05]} 16. Nxc5 {[%clk 00:10:34]} {[%emt 00:00:18]} Qc7
{[%clk 00:05:14]} {[%emt 00:00:31]} 17. Ne2 {[%clk 00:07:17]} {[%emt 00:03:20]}
Bf6 {[%clk 00:04:08]} {[%emt 00:01:12]} 18. Ne4 {[%clk 00:06:08]} {[%emt
00:01:14]} Bb7 {[%clk 00:04:11]} {[%emt 00:00:02]} 19. Qd2 {[%clk 00:05:58]}
{[%emt 00:00:14]} Bxe4 {[%clk 00:03:58]} {[%emt 00:00:19]} 20. Bxa7 {[%emt
00:00:32]} Bxc2+ {[%clk 00:03:39]} 21. Qxc2 {[%clk 00:05:56]} {[%emt 00:00:03]}
Qxa7 {[%clk 00:03:42]} {[%emt 00:00:01]} 22. Qe4 {[%clk 00:05:35]} {[%emt
00:00:27]} Kg7 {[%clk 00:03:29]} {[%emt 00:00:19]} 23. f4 {[%clk 00:05:32]}
{[%emt 00:00:08]} Ng4 {[%clk 00:03:05]} {[%emt 00:00:29]} 24. Bd3 {[%clk
00:05:12]} {[%emt 00:00:24]} Rh6 {[%clk 00:02:53]} {[%emt 00:00:17]} 25. Rhf1
{[%clk 00:04:17]} {[%emt 00:01:00]} Nf2 {[%clk 00:02:57]} {[%emt 00:00:02]} 26.
Rxf2 {[%clk 00:04:20]} {[%emt 00:00:02]} Qxf2 {[%clk 00:03:01]} {[%emt
00:00:01]} 27. Rc1 {[%clk 00:04:01]} {[%emt 00:00:24]} Qb6 {[%clk 00:02:32]}
{[%emt 00:00:34]} 28. Rc8 {[%clk 00:03:39]} {[%emt 00:00:26]} b3 {[%clk
00:02:09]} {[%emt 00:00:29]} 29. a3 {[%clk 00:03:27]} {[%emt 00:00:17]} g5
{[%clk 00:01:54]} {[%emt 00:00:19]} 30. fxg5 {[%clk 00:03:07]} {[%emt
00:00:26]} Bxg5 {[%clk 00:01:58]} 31. Qf5 {[%clk 00:03:04]} {[%emt 00:00:08]}
1-0